bitfinex/quotes_SOLUSD_20250326
["timestamp","ask_amount","ask_price","bid_price","bid_amount"]
[1743012436744,0.03,138.22,138.19,42.69737896]
[1743012437145,0.03,138.22,138.21,24.0477301]
[1743012437449,0.03,138.22,138.21,42.69737896]
[1743012438343,0.03,138.22,138.21,18.64964886]
[1743012439238,0.03,138.22,138.19,18.64964886]
[1743012439444,0.03,138.22,138.17,1.75986157]
[1743012439445,23.90556853,138.2,138.15,24.0477301]
[1743012439946,23.90556853,138.2,138.16,42.55521739]
[1743012440471,23.90556853,138.2,138.16,49.79301739]
[1743012440645,31.14156853,138.2,138.16,49.79301739]
[1743012440840,31.14156853,138.2,138.16,25.88744886]
[1743012441069,23.90556853,138.18,138.13,32.69636853]
[1743012441274,30.32556853,138.18,138.13,32.69636853]
[1743012441842,30.32556853,138.18,138.14,23.90556853]
[1743012442364,30.32556853,138.18,138.14,31.14456853]
[1743012442650,37.56256853,138.18,138.14,31.14456853]
[1743012443361,37.56256853,138.18,138.13,32.69636853]
[1743012445261,6.42,138.18,138.15,18.64964886]
[1743012446472,30.32556853,138.18,138.15,18.64964886]
[1743012447066,23.90556853,138.17,138.13,1.5515]
[1743012447365,23.90556853,138.15,138.12,0.063]
[1743012447545,23.90556853,138.16,138.12,0.063]
[1743012447745,105.90556853,138.17,138.12,50.00027896]
[1743012448748,23.90556853,138.16,138.12,50.00027896]
[1743012448949,23.90556853,138.15,138.12,0.063]
[1743012450269,23.90556853,138.14,138.12,0.063]
[1743012450569,23.90556853,138.13,138.12,0.063]
[1743012450956,37.56506853,138.13,138.12,0.063]
[1743012451559,6.42,138.13,138.12,0.063]
[1743012454288,6.23933621,138.13,138.12,0.063]
[1743012454585,105.90556853,138.16,138.12,0.063]
[1743012454784,82.0,138.16,138.12,0.063]
[1743012455075,105.90556853,138.16,138.12,7.303]
[1743012455779,23.90556853,138.15,138.12,7.303]
[1743012456153,0.03,138.13,138.12,7.303]
[1743012456573,0.03,138.13,138.12,0.063]
[1743012457872,0.03,138.13,138.12,42.76037896]
[1743012458079,0.03,138.13,138.12,44.38617896]
[1743012458983,0.03,138.13,138.12,35.76640431]
[1743012460179,0.03,138.13,138.12,43.00640431]
[1743012460374,0.03,138.13,138.12,43.29072745]
[1743012460562,15.28579388,138.2,138.14,0.14216157]
[1743012460756,6.42,138.2,138.17,18.64964886]
[1743012461170,21.70579388,138.2,138.17,18.64964886]
[1743012461363,21.70579388,138.2,138.16,18.79181043]
[1743012461564,21.70579388,138.2,138.16,34.07760431]
[1743012461970,15.28579388,138.19,138.15,18.64964886]
[1743012462172,7.2385,138.15,138.12,1.6888]
[1743012462477,15.28579388,138.14,138.12,0.063]
[1743012464866,6.42,138.15,138.12,0.063]
[1743012464867,30.31732299,138.15,138.12,0.063]
[1743012465067,37.55582299,138.15,138.12,0.063]
[1743012465270,23.89732299,138.14,138.12,0.063]
[1743012466570,37.55582299,138.15,138.12,0.063]
[1743012467075,30.31732299,138.15,138.12,0.063]
[1743012467591,6.42,138.15,138.12,0.063]
[1743012468167,0.03,138.14,138.12,0.063]
[1743012469472,23.92732299,138.14,138.12,0.063]
[1743012469893,0.03,138.14,138.12,0.063]
[1743012472271,23.92732299,138.14,138.12,0.063]
[1743012472477,0.03,138.14,138.12,0.063]
[1743012473787,0.03,138.14,138.12,23.96032299]
[1743012474175,0.03,138.14,138.12,0.063]
[1743012475992,0.03,138.14,138.12,7.303]
[1743012482593,0.03,138.14,138.12,0.063]
[1743012482785,23.92732299,138.14,138.12,0.063]
[1743012482975,23.89732299,138.13,138.12,0.063]
[1743012484398,31.67278456,138.13,138.12,0.063]
[1743012484582,38.91228456,138.13,138.12,0.063]
[1743012484990,30.32219712,138.13,138.12,0.063]
[1743012486279,20.0,138.1,138.09,0.03]
[1743012486479,41.72723555,138.1,138.09,0.03]
[1743012488300,48.96833555,138.1,138.09,0.03]
[1743012499209,49.11049712,138.1,138.08,0.063]
[1743012499393,15.30723555,138.09,138.08,0.063]
[1743012499800,22.54883555,138.09,138.08,0.063]
[1743012504023,22.69099712,138.09,138.08,0.063]
[1743012505316,22.54883555,138.09,138.08,0.063]
[1743012509018,22.69099712,138.09,138.08,0.063]
[1743012513218,22.54883555,138.09,138.08,0.063]
[1743012518146,22.57883555,138.09,138.08,0.063]
[1743012519535,22.72099712,138.09,138.08,0.063]
[1743012524158,7.2716,138.09,138.08,0.063]
[1743012524442,22.57883555,138.09,138.08,0.063]
[1743012527132,15.33723555,138.09,138.08,0.063]
[1743012527329,21.75723555,138.09,138.08,0.063]
[1743012528345,28.99883555,138.09,138.08,0.063]
[1743012532635,22.57883555,138.09,138.08,0.063]
[1743012532834,0.03,138.09,138.08,0.063]
[1743012533026,6.43,138.09,138.08,0.063]
[1743012533763,0.03,138.09,138.08,0.063]
[1743012534062,6.43,138.09,138.08,0.063]
[1743012534359,21.73723555,138.09,138.08,0.063]
[1743012535359,0.03,138.09,138.08,0.063]
[1743012535645,0.03,138.09,138.08,15.37023555]
[1743012536525,0.03,138.09,138.08,0.063]
[1743012537452,0.03,138.09,138.08,7.3051]
[1743012538023,0.03,138.09,138.08,42.91324598]
[1743012538262,0.03,138.13,138.09,0.14216157]
[1743012538434,0.03,138.13,138.1,15.30723555]
[1743012539761,0.03,138.13,138.1,7.2407]
[1743012539938,15.30723555,138.12,138.08,8.174]
[1743012540439,0.03,138.13,138.1,18.64964886]
[1743012540740,0.03,138.13,138.1,15.30723555]
[1743012540940,0.03,138.13,138.11,15.30723555]
[1743012541144,0.03,138.13,138.1,15.30723555]
[1743012541330,0.03,138.13,138.12,15.30723555]
[1743012541536,0.03,138.13,138.12,16.89303555]
[1743012541736,0.03,138.13,138.12,42.78268441]
[1743012542358,0.03,138.13,138.12,42.92484598]
[1743012542666,0.03,138.13,138.12,49.30054598]
[1743012543357,0.03,138.14,138.13,18.79181043]
[1743012543555,0.03,138.14,138.13,34.09904598]
[1743012544272,0.03,138.14,138.13,41.33854598]
[1743012547042,0.03,138.14,138.12,23.26873555]
[1743012547275,0.03,138.14,138.12,7.9615]
[1743012547677,0.03,138.14,138.12,15.2014]
[1743012547861,0.03,138.14,138.12,1.5858]
[1743012548051,15.33723555,138.14,138.12,1.5858]
[1743012548378,21.73723555,138.14,138.12,1.5858]
[1743012549274,6.43,138.14,138.12,8.8256]
[1743012549483,6.43,138.14,138.12,24.13283555]
[1743012549978,6.43,138.14,138.12,1.5858]
[1743012550382,6.43,138.14,138.12,8.8258]
[1743012551383,6.43,138.14,138.12,24.13303555]
[1743012551549,0.03,138.14,138.13,15.30723555]
[1743012551746,0.03,138.14,138.13,34.09904598]
[1743012552070,0.03,138.14,138.13,40.39284598]
[1743012553151,0.03,138.14,138.13,47.63234598]
[1743012555079,0.03,138.14,138.13,47.69534598]
[1743012557072,0.03,138.14,138.13,0.063]
[1743012557655,0.03,138.14,138.13,15.37023555]
[1743012558863,0.03,138.14,138.13,34.16204598]
[1743012559963,0.03,138.14,138.13,41.40154598]
[1743012564293,0.03,138.14,138.13,0.063]
[1743012564676,0.03,138.14,138.13,7.3025]
[1743012564995,0.03,138.14,138.13,0.063]
[1743012565365,0.03,138.14,138.13,7.3025]
[1743012566202,0.03,138.14,138.13,22.60973555]
[1743012566574,21.73723555,138.14,138.13,0.063]
[1743012567563,6.43,138.14,138.13,0.063]
[1743012570796,13.669,138.14,138.13,0.063]
[1743012572082,28.97623555,138.14,138.13,0.063]
[1743012572393,28.97623555,138.14,138.08,0.063]
[1743012572394,20.0,138.11,138.08,0.063]
[1743012572572,15.30723555,138.09,138.08,0.063]
[1743012572898,28.94883555,138.09,138.08,0.063]
[1743012573799,21.70723555,138.09,138.08,0.063]
[1743012575180,6.4,138.09,138.08,0.063]
[1743012576788,21.70723555,138.09,138.08,0.063]
[1743012577571,28.94883555,138.09,138.08,0.063]
[1743012580372,29.09099712,138.09,138.08,0.063]
[1743012582115,20.0,138.06,138.0,5.03]
[1743012582281,15.30723555,138.03,138.0,5.03]
[1743012582478,15.30723555,138.01,138.0,5.03]
[1743012583308,22.55303555,138.01,138.0,5.03]
[1743012583508,22.69519712,138.01,138.0,5.03]
[1743012583715,15.30723555,137.97,137.92,61.27208932]
[1743012583896,6.4,137.96,137.94,15.30723555]
[1743012584090,6.4,137.96,137.95,15.30723555]
[1743012584303,15.30723555,138.0,137.95,15.30723555]
[1743012584481,15.30723555,137.99,137.94,15.30723555]
[1743012585182,15.30723555,137.98,137.94,15.30723555]
[1743012585382,15.30723555,137.99,137.94,22.55643555]
[1743012586989,21.70723555,138.0,137.95,15.30723555]
[1743012587313,21.70723555,138.0,137.96,7.2484]
[1743012589123,21.70723555,138.0,137.97,15.30723555]
[1743012589124,6.4,138.0,137.97,15.30723555]
[1743012589288,82.0,138.01,137.98,15.30723555]
[1743012589612,6.4,138.03,137.99,15.30723555]
[1743012590500,6.4,138.03,138.0,15.30723555]
[1743012590815,6.4,138.03,138.01,7.2458]
[1743012591017,105.93296055,138.02,137.95,7.249]
[1743012591311,82.0,138.01,137.94,32.68566055]
[1743012591509,23.93296055,138.0,137.95,23.93296055]
[1743012591717,82.0,138.01,137.97,23.93296055]
[1743012591948,105.93296055,138.01,137.96,23.93296055]
[1743012592093,23.93296055,138.0,137.95,42.72477098]
[1743012592295,23.93296055,138.0,137.95,23.93296055]
[1743012593105,23.99596055,138.0,137.95,23.93296055]
[1743012593417,0.063,138.0,137.97,23.93296055]
[1743012594087,0.063,138.0,137.98,23.93296055]
[1743012594995,0.063,138.0,137.98,31.18026055]
[1743012595206,0.063,138.0,137.98,23.93296055]
[1743012595511,0.063,138.0,137.99,23.93296055]
[1743012596010,0.063,138.0,137.98,7.2474]
[1743012596218,0.063,138.0,137.98,31.18036055]
[1743012596509,0.063,138.0,137.98,23.93296055]
[1743012596703,0.063,138.0,137.99,23.93296055]
[1743012599895,0.063,138.0,137.98,23.93296055]
[1743012600296,0.063,138.0,137.95,18.79181043]
[1743012600518,0.063,138.0,137.96,23.93296055]
[1743012601019,0.063,138.0,137.97,23.93296055]
[1743012601620,0.063,138.0,137.96,23.93296055]
[1743012601820,0.063,138.0,137.97,23.93296055]
[1743012602998,0.063,138.0,137.99,23.93296055]
[1743012603325,0.063,138.0,137.99,31.17986055]
[1743012606133,0.063,138.0,137.99,49.97167098]
[1743012606312,0.063,138.0,137.99,26.03871043]
[1743012606621,0.0001,138.0,137.99,51.77459412]
[1743012607198,82.0,138.09,138.03,20.14216157]
[1743012607422,82.0,138.09,138.07,31.17516055]
[1743012607817,58.66733945,138.06,137.96,18.79181043]
[1743012608024,23.93296055,138.03,137.98,23.93296055]
[1743012608825,57.24483945,138.05,138.01,23.93296055]
[1743012609628,57.24483945,138.05,138.0,23.93296055]
[1743012610322,50.82483945,138.05,138.01,23.93296055]
[1743012610507,57.26483945,138.05,138.01,23.93296055]
[1743012610914,50.82483945,138.05,138.01,23.93296055]
[1743012612541,50.82483945,138.05,138.01,31.17856055]
[1743012613045,50.82483945,138.05,138.01,23.93296055]
[1743012613642,50.82483945,138.05,138.01,31.17876055]
[1743012613843,50.82483945,138.05,138.03,23.93296055]
[1743012614217,6.44,138.07,138.04,23.93296055]
[1743012614535,6.44,138.07,138.05,23.93296055]
[1743012614927,6.44,138.07,138.04,23.93296055]
[1743012615123,50.82483945,138.11,138.06,23.93296055]
[1743012615321,50.82483945,138.11,138.1,23.93296055]
[1743012615541,0.03,138.13,138.1,23.93296055]
[1743012615831,0.03,138.13,138.11,23.93296055]
[1743012616044,0.03,138.13,138.12,23.93296055]
[1743012617248,0.03,138.13,138.11,23.93296055]
[1743012617622,0.03,138.13,138.08,21.6654]
[1743012617837,0.03,138.13,138.09,23.93296055]
[1743012618040,0.03,138.13,138.1,23.93296055]
[1743012618251,7.24,138.12,138.08,23.93296055]
[1743012618636,0.03,138.13,138.1,23.93296055]
[1743012619254,7.2695,138.13,138.09,23.93296055]
[1743012619946,7.2695,138.13,138.1,23.93296055]
[1743012620334,0.03,138.13,138.1,23.93296055]
[1743012621335,0.03,138.13,138.11,23.93296055]
[1743012623056,0.03,138.13,138.1,23.93296055]
[1743012624956,0.03,138.13,138.09,23.93296055]
[1743012626243,0.03,138.13,138.1,23.93296055]
[1743012626949,0.03,138.13,138.08,7.2418]
[1743012626950,0.03,138.13,138.11,23.93296055]
[1743012627836,0.03,138.13,138.12,23.73296055]
[1743012628152,0.03,138.13,138.12,42.72477098]
[1743012629352,0.03,138.13,138.11,25.45876055]
[1743012629558,0.03,138.13,138.1,23.93296055]
[1743012630768,0.03,138.13,138.11,23.93296055]
[1743012631067,0.03,138.13,138.12,23.93296055]
[1743012631748,0.03,138.13,138.12,42.72477098]
[1743012632157,0.03,138.13,138.12,58.45619412]
[1743012637544,0.03,138.14,138.12,58.45619412]
[1743012637742,0.03,138.14,138.13,43.00909412]
[1743012638667,0.0001,138.14,138.13,43.00909412]
[1743012639260,0.0001,138.14,138.13,50.24859412]
[1743012641375,50.82483945,138.21,138.19,23.93296055]
[1743012641555,50.82483945,138.21,138.18,23.93296055]
[1743012642550,50.82483945,138.21,138.16,20.0]
[1743012642783,50.82483945,138.21,138.17,23.93296055]
[1743012643368,50.82483945,138.21,138.17,31.17006055]
[1743012644193,50.82483945,138.21,138.18,23.93296055]
[1743012644852,50.82483945,138.21,138.19,23.93296055]
[1743012645052,6.43,138.22,138.18,23.93296055]
[1743012645274,0.03,138.22,138.18,23.93296055]
[1743012645587,0.03,138.22,138.19,23.93296055]
[1743012645798,0.03,138.22,138.18,31.16966055]
[1743012646154,23.96296055,138.22,138.18,7.2367]
[1743012646455,31.19776055,138.22,138.18,7.2367]
[1743012646659,31.19776055,138.22,138.17,7.2372]
[1743012646863,31.19776055,138.22,138.17,31.17016055]
[1743012647992,31.16846055,138.21,138.17,7.2372]
[1743012648789,31.16846055,138.21,138.16,23.93296055]
[1743012649085,81.9933,138.21,138.16,31.17076055]
[1743012651890,74.7578,138.21,138.16,31.17076055]
[1743012653590,81.9932,138.21,138.16,31.17076055]
[1743012656074,82.0232,138.21,138.16,31.17076055]
[1743012656796,74.7878,138.21,138.16,31.17076055]
[1743012656996,74.7878,138.21,138.17,23.93296055]
[1743012656997,50.85483945,138.21,138.17,23.93296055]
[1743012657482,74.7878,138.21,138.17,23.93296055]
[1743012657689,82.0233,138.21,138.16,31.17076055]
[1743012660305,23.93296055,138.19,138.14,18.79181043]
[1743012660479,23.93296055,138.17,138.12,23.99596055]
[1743012661279,23.93296055,138.17,138.12,31.23576055]
[1743012661478,23.93296055,138.16,138.12,0.063]
[1743012661675,23.93296055,138.14,138.12,0.063]
[1743012661874,30.33296055,138.13,138.12,0.063]
[1743012663005,6.4,138.13,138.12,0.063]
[1743012663298,30.33296055,138.13,138.12,0.063]
[1743012663605,88.3973,138.13,138.12,0.063]
[1743012663806,37.57246055,138.13,138.12,0.063]
[1743012664095,37.57246055,138.13,138.06,0.03]
[1743012664096,0.14216157,138.12,138.06,0.03]
[1743012664278,23.93296055,138.07,138.06,0.03]
[1743012664601,30.33296055,138.07,138.06,0.03]
[1743012664795,6.4,138.07,138.06,0.03]
[1743012666190,6.4,138.07,138.06,23.96296055]
[1743012666381,82.0,138.1,138.06,23.96296055]
[1743012666582,82.0,138.1,138.07,23.93296055]
[1743012666797,6.4,138.11,138.07,23.93296055]
[1743012668303,6.4,138.11,138.08,7.2421]
[1743012668800,6.4,138.11,138.08,31.17506055]
[1743012668999,82.0,138.12,138.09,23.93296055]
[1743012669676,88.4,138.14,138.1,23.93296055]
[1743012670608,112.33296055,138.14,138.1,7.2409]
[1743012672212,23.93296055,138.13,138.09,31.17436055]
[1743012672384,23.93296055,138.12,138.07,42.72477098]
[1743012672791,23.93296055,138.12,138.08,23.93296055]
[1743012673305,23.93296055,138.12,138.08,31.17496055]
[1743012673714,23.93296055,138.12,138.08,7.242]
[1743012675110,23.93296055,138.12,138.08,31.17496055]
[1743012675285,23.93296055,138.12,138.08,7.242]
[1743012676405,23.93296055,138.11,138.08,7.242]
[1743012677392,23.93296055,138.11,138.07,49.96717098]
[1743012678014,23.93296055,138.12,138.07,49.96717098]
[1743012679714,113.17266055,138.13,138.08,23.93296055]
[1743012680110,23.93296055,138.12,138.07,49.96717098]
[1743012682719,113.17266055,138.13,138.08,23.93296055]
[1743012683216,113.17266055,138.13,138.08,31.17486055]
[1743012683996,23.93296055,138.12,138.08,7.2419]
[1743012686318,82.0,138.13,138.09,42.72477098]
[1743012686618,82.0,138.16,138.13,18.79181043]
[1743012686834,88.4,138.19,138.15,23.93296055]
[1743012687699,88.4,138.19,138.15,31.17126055]
[1743012688004,112.33296055,138.19,138.15,31.17126055]
[1743012688189,119.56946055,138.19,138.15,31.17126055]
[1743012688397,119.56946055,138.19,138.15,23.93296055]
[1743012688617,88.4,138.19,138.15,31.17136055]
[1743012688916,82.0,138.19,138.16,23.93296055]
[1743012689115,82.0,138.19,138.17,23.93296055]
[1743012689601,0.03,138.21,138.17,31.17016055]
[1743012690010,0.03,138.21,138.19,23.93296055]
[1743012690210,0.03,138.21,138.2,23.93296055]
[1743012690522,0.03,138.21,138.19,23.93296055]
[1743012695122,7.2643,138.23,138.21,0.14216157]
[1743012695123,0.03,138.23,138.21,0.14216157]
[1743012695323,0.03,138.27,138.25,20.14216157]
[1743012695501,0.03,138.27,138.25,86.94205467]
[1743012696423,0.03,138.27,138.25,94.17525467]
[1743012697202,0.03,138.27,138.25,95.72245467]
[1743012699819,0.0001,138.26,138.25,95.72245467]
[1743012700122,0.0001,138.28,138.27,25.12073357]
[1743012700295,0.0001,138.28,138.27,49.05369412]
[1743012700698,0.0001,138.28,138.27,56.28589412]
[1743012705205,0.0001,138.28,138.27,50.24129412]
[1743012706816,0.0001,138.28,138.27,49.95697098]
[1743012708308,0.0001,138.28,138.27,50.24129412]
[1743012709633,0.0001,138.28,138.27,132.84129412]
[1743012709835,82.03,138.35,138.29,0.28432314]
[1743012710032,82.03,138.35,138.33,23.93296055]
[1743012710222,82.03,138.35,138.33,31.16186055]
[1743012711334,82.03,138.35,138.33,23.93296055]
[1743012711527,82.03,138.35,138.32,23.93296055]
[1743012711829,82.03,138.35,138.33,23.93296055]
[1743012713142,82.03,138.35,138.32,31.16226055]
[1743012714822,82.03,138.35,138.34,23.93296055]
[1743012715136,82.03,138.35,138.34,42.58260941]
[1743012715343,82.03,138.35,138.32,7.2293]
[1743012715344,82.03,138.35,138.32,31.16226055]
[1743012716237,82.03,138.35,138.32,23.93296055]
[1743012717422,82.03,138.35,138.33,42.58260941]
[1743012718339,82.03,138.35,138.33,49.81160941]
[1743012720722,82.03,138.35,138.33,42.58260941]
[1743012721231,0.03,138.35,138.33,42.58260941]
[1743012721545,7.2581,138.35,138.3,7.2304]
[1743012721738,23.93296055,138.33,138.28,49.95647098]
[1743012721937,31.16256055,138.32,138.28,42.72477098]
[1743012722247,88.38,138.34,138.3,42.58260941]
[1743012722453,6.38,138.34,138.32,18.64964886]
[1743012722828,6.38,138.34,138.31,0.14216157]
[1743012723247,6.38,138.34,138.33,42.58260941]
[1743012723424,0.03,138.35,138.34,18.64964886]
[1743012723622,0.03,138.35,138.34,42.72477098]
[1743012723823,0.03,138.35,138.34,43.00909412]
[1743012724022,0.03,138.35,138.34,50.23759412]
[1743012724561,0.03,138.35,138.34,42.58260941]
[1743012724849,0.03,138.35,138.33,23.93296055]
[1743012725024,0.03,138.35,138.34,42.58260941]
[1743012725624,0.03,138.35,138.34,42.72477098]
[1743012726150,0.03,138.35,138.34,49.95327098]
[1743012726753,0.03,138.35,138.34,42.72477098]
[1743012727252,0.03,138.35,138.34,18.64964886]
[1743012727445,0.03,138.35,138.33,23.93296055]
[1743012727626,0.03,138.35,138.31,23.93296055]
[1743012727828,0.03,138.35,138.31,31.16296055]
[1743012728042,0.03,138.35,138.32,23.93296055]
[1743012728447,0.03,138.35,138.31,31.16296055]
[1743012729139,0.03,138.35,138.32,23.93296055]
[1743012729652,0.03,138.35,138.33,42.58260941]
[1743012730038,0.03,138.35,138.34,49.81110941]
[1743012730237,0.03,138.35,138.34,18.64964886]
[1743012730437,0.03,138.35,138.33,23.93296055]
[1743012730840,0.03,138.35,138.33,18.64964886]
[1743012731362,0.03,138.35,138.33,25.87864886]
[1743012732163,0.03,138.35,138.33,18.64964886]
[1743012732351,0.03,138.35,138.32,23.93296055]
[1743012732661,0.03,138.35,138.31,31.16276055]
[1743012733034,0.03,138.35,138.32,42.58260941]
[1743012733353,0.03,138.35,138.33,23.93296055]
[1743012734056,0.03,138.35,138.34,7.2285]
[1743012735455,0.03,138.35,138.32,25.87894886]
[1743012736064,0.03,138.35,138.32,49.81190941]
[1743012737052,0.03,138.35,138.32,25.87894886]
[1743012737251,23.96296055,138.35,138.31,7.2299]
[1743012737740,0.03,138.35,138.31,31.16286055]
[1743012742377,0.03,138.35,138.32,23.93296055]
[1743012743070,0.03,138.35,138.33,42.58260941]
[1743012743982,0.03,138.35,138.34,7.2285]
[1743012744145,0.03,138.35,138.34,49.81110941]
[1743012744483,0.03,138.35,138.34,49.95327098]
[1743012747577,0.03,138.36,138.35,18.64964886]
[1743012747753,0.03,138.36,138.35,42.58260941]
[1743012748372,0.03,138.36,138.35,49.81060941]
[1743012749469,0.03,138.36,138.35,50.23709412]
[1743012749647,0.0001,138.36,138.35,50.23709412]
[1743012750375,0.0001,138.42,138.41,38.933972]
[1743012750563,0.0001,138.42,138.41,145.60909412]
[1743012752157,0.0001,138.42,138.41,42.72477098]
[1743012755566,0.0001,138.42,138.4,18.64964886]
[1743012755770,0.0001,138.42,138.39,18.64964886]
[1743012756074,23.93306055,138.42,138.38,18.64964886]
[1743012756272,0.0001,138.42,138.38,18.64964886]
[1743012757571,0.0001,138.42,138.38,42.58260941]
[1743012758076,23.93306055,138.42,138.38,18.64964886]
[1743012758255,23.93306055,138.42,138.37,23.93296055]
[1743012759379,31.15786055,138.42,138.38,18.64964886]
[1743012759896,23.93296055,138.41,138.36,24.07512212]
[1743012760068,23.93296055,138.41,138.37,18.64964886]
[1743012761296,31.15786055,138.42,138.37,42.58260941]
[1743012762199,113.15786055,138.42,138.4,0.063]
[1743012763707,23.93296055,138.41,138.4,0.063]
[1743012764084,25.44766055,138.41,138.4,0.063]
[1743012765700,32.67256055,138.41,138.4,0.063]
[1743012766900,25.44766055,138.41,138.4,0.063]
[1743012767198,23.93296055,138.41,138.4,0.063]
[1743012767399,31.15786055,138.41,138.4,0.063]
[1743012772414,7.2249,138.41,138.4,0.063]
[1743012772608,31.15786055,138.41,138.4,0.063]
[1743012774622,7.2247,138.42,138.4,0.063]
[1743012774808,6.38,138.41,138.4,0.063]
[1743012775384,0.0001,138.42,138.4,49.87050941]
[1743012775587,0.0001,138.42,138.41,23.93296055]
[1743012776098,0.0001,138.42,138.4,49.87050941]
[1743012776299,0.0001,138.42,138.4,0.063]
[1743012781710,0.0001,138.42,138.4,18.71264886]
[1743012781913,15.23161525,138.42,138.4,0.063]
[1743012782413,15.23151525,138.41,138.4,0.063]
[1743012782621,97.23151525,138.41,138.4,0.063]
[1743012784205,104.45641525,138.41,138.4,0.063]
[1743012785004,113.03913178,138.41,138.4,0.063]
[1743012786322,113.06913178,138.41,138.4,0.063]
[1743012787019,82.03,138.41,138.4,0.063]
[1743012787206,0.03,138.41,138.4,0.063]
[1743012789021,0.03,138.41,138.4,24.01939335]
[1743012790091,0.03,138.41,138.4,31.24479335]
[1743012793304,0.0001,138.42,138.41,25.20303357]
[1743012793507,0.0001,138.42,138.41,49.01726535]
[1743012795218,0.0001,138.42,138.41,56.24216535]
[1743012797024,0.0001,138.42,138.41,49.83094221]
[1743012799128,0.0001,138.42,138.41,18.64964886]
[1743012799813,0.0001,138.42,138.4,18.71264886]
[1743012800612,0.0001,138.42,138.4,49.75218064]
[1743012800817,0.0001,138.42,138.41,42.46388064]
[1743012801714,0.0001,138.42,138.41,42.60604221]
[1743012802807,0.0001,138.42,138.41,49.83094221]
[1743012803230,0.0001,138.42,138.41,42.60604221]
[1743012803631,0.0001,138.42,138.41,49.83094221]
[1743012804220,0.0001,138.42,138.41,18.64964886]
[1743012805132,0.0001,138.42,138.41,49.68878064]
[1743012806943,0.0001,138.42,138.41,41.1006274]
[1743012807441,0.0001,138.42,138.41,33.8757274]
[1743012807648,0.0001,138.42,138.4,15.28907854]
[1743012807940,0.0001,138.42,138.4,41.1640274]
[1743012808639,0.0001,138.42,138.41,15.22607854]
[1743012809340,0.0001,138.42,138.41,41.1006274]
[1743012809730,0.0001,138.42,138.41,41.1636274]
[1743012813955,0.0001,138.42,138.41,40.98325563]
[1743012814840,0.0001,138.42,138.41,41.26757877]
[1743012815052,0.0001,138.42,138.41,42.81187877]
[1743012815548,0.0001,138.42,138.41,42.95404034]
[1743012817947,0.0001,138.42,138.41,42.81187877]
[1743012818642,0.0001,138.42,138.41,26.07971043]
[1743012818948,0.0001,138.42,138.41,0.063]
[1743012819657,0.0001,138.42,138.41,33.9387274]
[1743012819831,0.0001,138.42,138.41,41.1636274]
[1743012822234,0.0001,138.42,138.41,0.063]
[1743012823070,27.82947854,138.44,138.41,0.063]
[1743012823861,109.82947854,138.44,138.41,0.063]
[1743012825056,87.3801,138.44,138.41,0.063]
[1743012826644,87.3801,138.44,138.41,7.2879]
[1743012826863,102.60617854,138.44,138.41,7.2879]
[1743012827052,109.82947854,138.44,138.41,0.063]
[1743012828179,102.60617854,138.44,138.41,0.063]
[1743012828537,109.82957854,138.44,138.41,0.063]
[1743012828749,15.22607854,138.43,138.41,0.063]
[1743012829658,15.22607854,138.42,138.41,0.063]
[1743012830737,22.45037854,138.42,138.41,0.063]
[1743012837180,15.22607854,138.42,138.41,0.063]
[1743012838671,15.25607854,138.44,138.41,0.063]
[1743012838874,6.41,138.44,138.41,7.2879]
[1743012839047,6.41,138.44,138.41,22.51397854]
[1743012839778,88.41,138.44,138.41,7.2879]
[1743012840279,103.63607854,138.44,138.41,0.063]
[1743012841362,15.22607854,138.42,138.41,0.063]
[1743012843583,15.22607854,138.43,138.41,0.063]
[1743012843783,103.63607854,138.44,138.41,0.063]
[1743012844159,88.41,138.44,138.41,0.063]